bitfinex-derivatives/quotes_BNBF0:USTF0_20241225
["timestamp","ask_amount","ask_price","bid_price","bid_amount"]
[1735110846338,0.28394167,704.37,703.37,1.05969484]
[1735110847134,0.28394167,704.37,703.36,1.05969484]
[1735110847834,0.26121424,704.36,703.36,1.05969484]
[1735110848237,0.26121424,704.36,703.38,1.05969484]
[1735110848637,0.28394167,704.37,703.38,1.05969484]
[1735110849440,0.26121102,704.36,703.44,1.05969484]
[1735110849640,0.26121466,704.35,703.44,1.05969484]
[1735110849840,0.28394167,704.37,703.44,1.05969484]
[1735110850042,0.26121466,704.36,703.44,1.05969484]
[1735110850740,0.26121466,704.36,703.42,1.05969484]
[1735110851135,0.28394167,704.37,703.42,1.05969484]
[1735110852336,0.26121637,704.36,703.42,1.05969484]
[1735110853143,0.26121637,704.36,703.44,1.05969484]
[1735110853938,0.28394167,704.37,703.44,1.05969484]
[1735110855541,0.28394167,704.37,703.45,1.05969484]
[1735110856448,0.28394167,704.37,703.48,1.05969484]
[1735110857549,0.28394167,704.37,703.45,1.05969484]
[1735110858646,0.28394167,704.37,703.43,1.05969484]
[1735110859649,0.28394167,704.37,703.42,1.05969484]
[1735110860651,0.28394167,704.37,703.47,1.05969484]
[1735110861652,0.28394167,704.37,703.45,1.05969484]
[1735110862650,0.28394167,704.37,702.8,2.16354364]
[1735110862651,0.28394167,704.37,703.43,1.05969484]
[1735110864549,0.28394167,704.37,703.42,1.05969484]
[1735110865349,0.28394167,704.37,703.41,1.05969484]
[1735110866153,0.28394167,704.37,703.44,1.05969484]
[1735110867348,0.28394167,704.37,703.42,1.05969484]
[1735110869453,0.28394167,704.37,703.39,1.05969484]
[1735110870656,0.28394167,704.37,703.42,1.05969484]
[1735110871452,0.28394167,704.37,703.43,1.05969484]
[1735110872352,0.28394167,704.37,703.45,1.05969484]
[1735110873555,0.28394167,704.37,703.47,1.05969484]
[1735110874756,0.28394167,704.37,703.51,1.05969484]
[1735110876763,0.28394167,704.37,703.5,1.05969484]
[1735110877560,0.28394167,704.37,703.51,1.05969484]
[1735110880668,0.28394167,704.37,703.52,1.05969484]
[1735110881768,0.28394167,704.37,703.54,1.05969484]
[1735110882763,0.28394167,704.37,703.57,1.05969484]
[1735110884070,0.28394167,704.37,703.59,1.05969484]
[1735110886071,0.28394167,704.37,703.62,1.05969484]
[1735110886772,0.28394167,704.37,703.64,1.05969484]
[1735110887671,0.28394167,704.37,703.62,1.05969484]
[1735110889870,0.28394167,704.37,703.7,1.05969484]
[1735110891266,0.28394167,704.37,703.64,1.05969484]
[1735110893371,0.28394167,704.37,703.62,1.05969484]
[1735110895472,0.28394167,704.37,703.64,1.05969484]
[1735110896467,0.28394167,704.37,702.92,2.16354364]
[1735110896468,0.28394167,704.37,703.62,1.05969484]
[1735110897774,1.05387925,705.1,703.62,1.05969484]
[1735110897970,0.28365575,705.08,703.62,1.05969484]
[1735110898275,0.26112091,705.07,703.62,1.05969484]
[1735110898775,0.28366782,705.05,703.62,1.05969484]
[1735110898975,0.26112091,705.04,703.65,1.05969484]
[1735110899175,0.28367989,705.02,703.65,1.05969484]
[1735110899474,0.26112091,705.01,703.65,1.05969484]
[1735110899777,0.2611153,705.0,703.65,1.05969484]
[1735110899976,0.2611153,704.99,703.65,1.05969484]
[1735110900275,0.28370001,704.97,703.65,1.05969484]
[1735110900579,0.28370001,704.97,703.64,1.05969484]
[1735110900580,0.2611153,704.96,703.64,1.05969484]
[1735110900874,0.28370806,704.95,703.64,1.05969484]
[1735110901073,0.2611153,704.94,703.64,1.05969484]
[1735110901269,0.28371611,704.93,703.64,1.05969484]
[1735110901471,0.2611153,704.92,703.64,1.05969484]
[1735110901671,0.28372416,704.91,703.64,1.05969484]
[1735110901979,0.26111718,704.9,703.68,1.05969484]
[1735110902275,0.28373221,704.89,703.68,1.05969484]
[1735110902476,0.26113544,704.88,703.68,1.05969484]
[1735110902874,0.26113544,704.88,702.96,2.16354364]
[1735110902875,0.26113544,704.88,703.59,1.05969484]
[1735110903677,0.28374026,704.87,703.57,1.05969484]
[1735110903876,0.26113544,704.86,703.57,1.05969484]
[1735110904078,0.28374831,704.85,703.57,1.05969484]
[1735110904378,0.26113544,704.84,703.57,1.05969484]
[1735110904575,0.26113885,704.83,703.57,1.05969484]
[1735110904775,0.26113885,704.82,703.57,1.05969484]
[1735110904971,0.26113885,704.81,703.57,1.05969484]
[1735110905177,0.26113885,704.8,703.57,1.05969484]
[1735110905371,0.26113885,704.79,703.57,1.05969484]
[1735110905676,0.26113885,704.78,703.57,1.05969484]
[1735110905877,0.54491937,704.77,703.58,1.05969484]
[1735110906074,0.26113885,704.76,703.58,1.05969484]
[1735110907371,0.28378052,704.77,703.58,1.05969484]
[1735110907372,0.26113857,704.75,703.58,1.05969484]
[1735110907574,0.26113857,704.74,703.58,1.05969484]
[1735110907876,0.28378052,704.77,703.58,1.05969484]
[1735110907877,0.26113857,704.73,703.58,1.05969484]
[1735110908077,0.26113857,704.73,702.82,2.16354364]
[1735110908078,0.26113857,704.72,703.61,1.05969484]
[1735110908272,0.26113857,704.71,703.61,1.05969484]
[1735110908474,0.26113857,704.7,703.61,1.05969484]
[1735110908675,0.26113857,704.69,703.61,1.05969484]
[1735110908873,0.26113857,704.68,703.61,1.05969484]
[1735110909077,0.26113857,704.68,702.92,2.16354364]
[1735110909078,0.26113857,704.67,703.62,1.05969484]
[1735110909280,0.28378052,704.77,703.62,1.05969484]
[1735110910380,0.28378052,704.77,703.5,1.05969484]
[1735110911379,0.28378052,704.77,703.47,1.05969484]
[1735110912580,0.28378052,704.77,703.36,1.05969484]
[1735110913181,0.28378052,704.77,703.37,1.05969484]
[1735110916881,0.28378052,704.77,703.36,1.05969484]
[1735110917086,0.26117116,704.76,703.36,1.05969484]
[1735110917387,0.2837926,704.74,703.36,1.05969484]
[1735110917584,0.26117116,704.73,703.36,1.05969484]
[1735110918085,0.26117116,704.73,703.59,1.05969484]
[1735110918586,0.26117905,704.72,703.59,1.05969484]
[1735110918887,0.54498373,704.71,703.59,1.05969484]
[1735110919084,0.54498776,704.7,703.56,1.05969484]
[1735110919283,0.26117905,704.69,703.56,1.05969484]
[1735110919683,0.26117769,704.68,703.56,1.05969484]
[1735110919883,0.26117769,704.67,703.56,1.05969484]
[1735110920086,0.26117769,704.66,703.56,1.05969484]
[1735110920283,0.26117769,704.65,703.54,1.05969484]
[1735110920481,1.2646551,704.96,703.54,1.05969484]
[1735110920482,0.54501056,704.64,703.54,1.05969484]
[1735110920788,0.54501459,704.63,703.54,1.05969484]
[1735110920988,0.26117769,704.62,703.54,1.05969484]
[1735110921190,0.2838369,704.63,703.36,1.05969484]
[1735110921389,0.26122934,704.62,703.36,1.05969484]
[1735110922594,0.26122934,704.62,703.17,1.05969484]
[1735110923890,0.26123668,704.61,703.17,1.05969484]
[1735110924091,0.26123668,704.6,703.17,1.05969484]
[1735110924392,0.26123668,704.59,703.13,1.05969484]
[1735110924591,0.26123668,704.58,703.13,1.05969484]
[1735110924785,0.26123668,704.57,703.13,1.05969484]
[1735110924992,0.26123668,704.56,703.13,1.05969484]
[1735110925192,0.26123668,704.55,703.13,1.05969484]
[1735110925394,0.2838369,704.63,703.09,1.05969484]
[1735110925591,0.2612103,704.62,703.09,1.05969484]
[1735110926391,0.2612103,704.62,703.18,1.05969484]
[1735110926693,0.26120897,704.61,703.18,1.05969484]
[1735110926894,0.26120897,704.6,703.18,1.05969484]
[1735110927092,0.26120897,704.59,703.18,1.05969484]
[1735110927294,0.26120897,704.59,702.37,2.16354364]
[1735110927295,0.2838369,704.63,703.15,1.05969484]
[1735110927494,0.2612167,704.62,703.15,1.05969484]
[1735110928491,0.2612167,704.62,703.27,1.05969484]
[1735110929395,0.2838369,704.63,703.27,1.05969484]
[1735110929592,0.2838369,704.63,703.25,1.05969484]
[1735110929593,0.26120756,704.62,703.25,1.05969484]
[1735110930597,0.28384496,704.61,703.25,1.05969484]
[1735110930899,0.26120756,704.6,703.25,1.05969484]
[1735110931099,0.28385302,704.59,703.25,1.05969484]
[1735110931295,0.26120756,704.58,703.25,1.05969484]
[1735110931496,0.28386107,704.57,703.25,1.05969484]
[1735110931794,0.26120756,704.56,703.25,1.05969484]
[1735110931994,0.28386913,704.55,703.25,1.05969484]
[1735110932196,0.26120814,704.54,703.25,1.05969484]
[1735110932397,0.28387719,704.53,703.25,1.05969484]
[1735110932597,0.26120814,704.52,703.25,1.05969484]
[1735110932797,0.28388525,704.51,703.29,1.05969484]
[1735110932993,0.26120814,704.5,703.29,1.05969484]
[1735110934395,0.26120814,704.5,703.28,1.05969484]
[1735110935695,0.28388525,704.51,703.27,1.05969484]
[1735110935894,0.26120761,704.5,703.27,1.05969484]
[1735110936500,0.26120761,704.5,703.29,1.05969484]
[1735110937495,0.26120761,704.5,703.32,1.05969484]
[1735110938799,0.26120761,704.5,703.3,1.05969484]
[1735110939702,0.26120761,704.5,703.33,1.05969484]
[1735110940499,0.28388928,704.5,703.33,1.05969484]
[1735110940702,0.26120588,704.49,703.34,1.05969484]
[1735110941994,0.26120588,704.49,703.31,1.05969484]
[1735110943194,0.26120588,704.49,703.32,1.05969484]
[1735110943393,0.26120565,704.48,703.32,1.05969484]
[1735110943596,0.26120565,704.47,703.32,1.05969484]
[1735110943793,0.26120565,704.46,703.32,1.05969484]
[1735110943994,0.26120565,704.45,703.32,1.05969484]
[1735110944302,0.26121069,704.44,703.35,1.05969484]
[1735110944601,0.26121069,704.43,703.35,1.05969484]
[1735110944802,0.26121069,704.42,703.35,1.05969484]
[1735110945002,0.26121069,704.41,703.36,1.05969484]
[1735110945301,0.26121069,704.4,703.36,1.05969484]
[1735110945494,0.26121069,704.39,703.36,1.05969484]
[1735110945695,0.26121069,704.38,703.36,1.05969484]
[1735110945901,0.26121069,704.37,703.36,1.05969484]
[1735110946097,0.28388928,704.5,703.36,1.05969484]
[1735110946303,0.28388928,704.5,703.38,1.05969484]
[1735110946304,0.2611996,704.49,703.38,1.05969484]
[1735110947402,0.2611996,704.49,703.4,1.05969484]
[1735110948404,0.2611996,704.49,702.82,2.16354364]
[1735110948405,0.2611996,704.49,703.42,1.05969484]
[1735110949003,0.26117977,704.48,703.42,1.05969484]
[1735110949203,0.26117977,704.47,703.42,1.05969484]
[1735110949398,0.26117977,704.46,703.42,1.05969484]
[1735110949603,0.26117977,704.45,703.48,1.05969484]
[1735110949801,0.28388928,704.5,703.48,1.05969484]
[1735110950000,0.26117327,704.49,703.48,1.05969484]
[1735110950902,0.26117327,704.49,702.9,2.16354364]
[1735110950903,0.26117327,704.49,703.51,1.05969484]
[1735110952402,0.26117327,704.49,703.56,1.05969484]
[1735110952606,0.28388928,704.5,703.56,1.05969484]
[1735110953606,0.28388928,704.5,703.44,1.05969484]
[1735110954709,0.28388928,704.5,703.42,1.05969484]
[1735110955610,0.28388928,704.5,703.43,1.05969484]
[1735110956410,0.28388928,704.5,703.34,1.05969484]
[1735110957212,0.28388928,704.5,703.29,1.05969484]
[1735110957411,0.26120328,704.49,703.29,1.05969484]
[1735110957611,0.28388928,704.5,703.29,1.05969484]
[1735110958214,0.28388928,704.5,703.36,1.05969484]
[1735110958706,0.26120296,704.49,703.36,1.05969484]
[1735110959114,0.26120296,704.49,703.37,1.05969484]
[1735110960115,0.28388928,704.5,703.42,1.05969484]
[1735110960116,0.26120381,704.48,703.42,1.05969484]
[1735110960414,0.26120381,704.47,703.42,1.05969484]
[1735110960615,0.26120381,704.46,703.42,1.05969484]
[1735110960812,0.28388928,704.5,703.42,1.05969484]
[1735110961016,0.26120181,704.49,703.42,1.05969484]
[1735110961414,0.26120181,704.49,703.44,1.05969484]
[1735110962110,0.26121711,704.48,703.44,1.05969484]
[1735110962311,0.26121711,704.47,703.44,1.05969484]
[1735110962513,0.26121711,704.46,703.44,1.05969484]
[1735110962714,0.54512654,704.45,703.38,1.05969484]
[1735110962915,0.54513057,704.44,703.38,1.05969484]
[1735110963115,0.26121711,704.43,703.38,1.05969484]
[1735110963313,0.28392152,704.42,703.38,1.05969484]
[1735110963514,0.28392152,704.42,703.39,1.05969484]
[1735110964216,0.26121667,704.41,703.39,1.05969484]
[1735110964814,0.28392152,704.42,703.39,1.05969484]
[1735110965015,0.26121544,704.41,703.39,1.05969484]
[1735110965217,0.28392152,704.42,703.39,1.05969484]
[1735110966118,0.28392152,704.42,703.13,1.05969484]
[1735110967220,0.28392152,704.42,703.14,0.28443837]
[1735110967419,0.28392152,704.42,703.18,1.05969484]
[1735110968512,0.28392152,704.42,703.22,1.05969484]
[1735110969618,0.28392152,704.42,703.4,1.05969484]
[1735110970715,0.28392152,704.42,703.39,1.05969484]
[1735110972017,0.28392152,704.42,703.49,1.05969484]
[1735110973019,0.28392152,704.42,703.48,1.05969484]
[1735110973922,0.28392152,704.42,703.49,1.05969484]
[1735110974922,0.28392152,704.42,703.53,1.05969484]
[1735110976223,0.28392152,704.42,703.59,1.05969484]
[1735110977020,0.28392152,704.42,703.57,1.05969484]
[1735110978327,0.28392152,704.42,703.58,1.05969484]
[1735110979526,0.28392152,704.42,703.55,1.05969484]
[1735110980431,0.28392152,704.42,703.57,1.05969484]
[1735110981335,0.28392152,704.42,703.58,1.05969484]
[1735110982431,0.28392152,704.42,703.59,1.05969484]
[1735110983229,0.28392152,704.42,703.15,0.77739458]
[1735110983230,0.28392152,704.42,703.63,1.05969484]
[1735110985429,0.28392152,704.42,703.43,1.05969484]
[1735110985430,0.28392152,704.42,703.62,1.05969484]
[1735110986635,0.28392152,704.42,703.55,1.05969484]
[1735110987735,0.28392152,704.42,703.54,1.05969484]
[1735110988737,0.28392152,704.42,703.51,1.05969484]
[1735110989629,0.28392152,704.42,703.53,1.05969484]
[1735110990331,0.28392152,704.42,703.5,1.05969484]
[1735110992333,0.28392152,704.42,703.52,1.05969484]
[1735110994435,0.28392152,704.42,703.53,1.05969484]
[1735110997338,0.28392152,704.42,703.57,1.05969484]
[1735110998443,0.28392152,704.42,703.58,1.05969484]
[1735110999340,0.28392152,704.42,703.55,1.05969484]
[1735111000041,0.28392152,704.42,703.6,1.05969484]
[1735111000838,0.28392152,704.42,703.63,1.05969484]
[1735111001935,0.28392152,704.42,703.64,1.05969484]
[1735111002744,0.28392152,704.42,703.6,1.05969484]
[1735111003944,0.28392152,704.42,703.58,1.05969484]
[1735111005048,0.28392152,704.42,703.56,1.05969484]
[1735111006149,0.28392152,704.42,703.49,1.05969484]
[1735111007951,0.28392152,704.42,703.5,1.05969484]
[1735111008944,0.28392152,704.42,703.25,1.05969484]
[1735111008945,0.28392152,704.42,703.51,1.05969484]
[1735111009854,0.28392152,704.42,703.52,1.05969484]
[1735111011052,0.28392152,704.42,703.15,1.83708942]
[1735111011053,0.28392152,704.42,703.58,1.05969484]
[1735111011946,0.28392152,704.42,703.6,1.05969484]
[1735111013251,0.28392152,704.42,703.62,1.05969484]
[1735111014654,0.28392152,704.42,703.67,1.05969484]
[1735111015748,0.28392152,704.42,703.7,1.05969484]
[1735111018551,0.28392152,704.42,703.72,1.05969484]
[1735111019954,0.28392152,704.42,703.53,1.05969484]
[1735111019955,0.28392152,704.42,703.73,1.05969484]
[1735111021656,0.28392152,704.42,703.72,1.05969484]
[1735111022649,0.28392152,704.42,703.74,1.05969484]
[1735111024156,0.28392152,704.42,703.7,1.05969484]
[1735111024854,0.28392152,704.42,703.69,1.05969484]
[1735111025853,0.28392152,704.42,703.09,2.16354364]
[1735111025854,0.28392152,704.42,703.7,1.05969484]
[1735111027055,0.28392152,704.42,703.73,1.05969484]
[1735111029258,0.28392152,704.42,703.72,1.05969484]
[1735111029861,0.28392152,704.42,703.67,1.05969484]
[1735111031964,0.28392152,704.42,703.68,1.05969484]
[1735111033266,0.28392152,704.42,703.71,1.05969484]
[1735111036069,0.28392152,704.42,703.69,1.05969484]
[1735111037072,0.28392152,704.42,703.7,1.05969484]
[1735111038973,0.28392152,704.42,703.67,1.05969484]
[1735111039965,0.28392152,704.42,703.7,1.05969484]
[1735111043074,0.28392152,704.42,703.21,0.77739458]
[1735111043075,0.28392152,704.42,703.72,1.05969484]
[1735111044976,0.28392152,704.42,703.21,0.77739458]
[1735111044977,0.28392152,704.42,703.74,1.05969484]
[1735111046572,1.05387925,705.01,703.74,1.05969484]
[1735111046771,0.28369196,704.99,703.74,1.05969484]
[1735111046971,0.28369196,704.99,703.52,1.05969484]
[1735111046972,0.2610674,704.98,703.78,1.05969484]
[1735111047376,0.28369196,704.99,703.78,1.05969484]
[1735111047377,0.2610697,704.97,703.78,1.05969484]
[1735111047575,0.2610697,704.96,703.78,1.05969484]
[1735111047775,0.2610697,704.95,703.78,1.05969484]
[1735111047977,0.2610697,704.94,703.78,1.05969484]
[1735111048178,0.2610697,704.93,703.79,1.05969484]
[1735111048377,0.2610697,704.92,703.79,1.05969484]
[1735111048577,0.28369196,704.99,703.79,1.05969484]
[1735111049278,0.28369196,704.99,703.58,1.05969484]
[1735111050178,0.28369196,704.99,703.55,1.05969484]
[1735111052783,0.28369196,704.99,703.53,1.05969484]
[1735111053782,0.28369196,704.99,703.51,1.05969484]
[1735111054985,0.28369196,704.99,702.62,1.27163381]
[1735111054986,0.28369196,704.99,703.5,1.05969484]
[1735111055884,0.28369196,704.99,703.49,1.05969484]
[1735111056885,0.28369196,704.99,703.5,1.05969484]
[1735111057888,0.28369196,704.99,703.49,1.05969484]
[1735111058889,0.28369196,704.99,703.65,1.05969484]
[1735111060191,0.2610277,704.98,703.65,1.05969484]
[1735111060991,0.2610277,704.98,703.73,1.05969484]
[1735111061292,0.26102746,704.97,703.73,1.05969484]
[1735111061488,0.26102746,704.96,703.73,1.05969484]
[1735111061686,0.26102746,704.95,703.73,1.05969484]
[1735111061890,0.26102746,704.94,703.72,1.05969484]
[1735111062187,0.26102746,704.93,703.72,1.05969484]
[1735111062387,0.26102746,704.92,703.72,1.05969484]
[1735111062587,0.26102746,704.91,703.72,1.05969484]
[1735111062788,0.26102746,704.9,703.69,1.05969484]
[1735111062986,0.28369196,704.99,703.69,1.05969484]
[1735111063186,0.26104434,704.98,703.69,1.05969484]
[1735111063692,0.26104434,704.98,703.67,1.05969484]
[1735111063892,0.2610424,704.97,703.67,1.05969484]
[1735111064092,0.2610424,704.96,703.67,1.05969484]
[1735111064393,0.2610424,704.95,703.67,1.05969484]
[1735111064594,0.28369196,704.99,703.67,1.05969484]
[1735111064894,0.26103921,704.98,703.68,1.05969484]
[1735111066497,0.28369196,704.99,703.65,1.05969484]
[1735111066790,0.26104582,704.98,703.65,1.05969484]
[1735111068600,0.28370403,704.96,703.65,1.05969484]
[1735111070097,0.28370403,704.96,703.66,1.05969484]
[1735111071498,0.28370403,704.96,703.41,1.05969484]
[1735111072597,0.28370403,704.96,702.32,2.16354364]
[1735111072598,0.28370403,704.96,703.39,1.05969484]
[1735111074399,0.28370403,704.96,703.41,1.05969484]
[1735111075293,0.28370403,704.96,703.49,1.05969484]
[1735111076293,0.28370403,704.96,702.49,2.16354364]
[1735111076294,0.28370403,704.96,703.5,1.05969484]
[1735111078498,0.28370403,704.96,703.53,1.05969484]
[1735111079600,0.28370403,704.96,703.54,1.05969484]
[1735111080797,0.28370403,704.96,703.6,1.05969484]
[1735111081595,0.26106469,704.95,703.6,1.05969484]
[1735111082101,0.26106469,704.95,703.68,1.05969484]
[1735111082598,0.26107192,704.94,703.68,1.05969484]
[1735111082799,0.54478803,704.93,703.68,1.05969484]
[1735111082995,0.54478803,704.93,703.7,1.05969484]
[1735111082996,0.26107192,704.92,703.7,1.05969484]
[1735111083201,0.28371611,704.93,703.7,1.05969484]
[1735111083400,0.26108428,704.92,703.7,1.05969484]
[1735111083798,0.26110008,704.91,703.7,1.05969484]
[1735111083995,0.26110266,704.9,703.7,1.05969484]
[1735111084200,0.26110266,704.89,703.7,1.05969484]
[1735111084400,0.26110266,704.88,703.64,1.05969484]
[1735111084602,0.26110266,704.87,703.64,1.05969484]
[1735111084806,0.26110266,704.86,703.64,1.05969484]
[1735111085000,0.26110266,704.85,703.64,1.05969484]
[1735111085200,0.28371611,704.93,703.64,1.05969484]
[1735111085401,0.28371611,704.93,703.59,1.05969484]
[1735111086304,0.28371611,704.93,703.34,1.05969484]
[1735111087200,0.28371611,704.93,703.32,1.05969484]
[1735111088197,0.28371611,704.93,703.29,1.05969484]
[1735111089799,0.28371611,704.93,703.32,1.05969484]
[1735111092107,0.28371611,704.93,703.31,1.05969484]
[1735111093108,0.28371611,704.93,703.33,1.05969484]
[1735111094708,0.28371611,704.93,703.37,1.05969484]
[1735111095810,0.28371611,704.93,703.47,1.05969484]
[1735111096907,0.28371611,704.93,703.56,1.05969484]
[1735111096908,0.26106907,704.92,703.56,1.05969484]
[1735111097803,0.26106907,704.92,703.7,1.05969484]
[1735111098806,0.26106907,704.92,703.77,1.05969484]
[1735111099006,0.28371611,704.93,703.77,1.05969484]
[1735111099207,0.26106795,704.92,703.77,1.05969484]
[1735111099409,0.28372416,704.91,703.77,1.05969484]
[1735111099607,0.26106795,704.9,703.75,1.05969484]
[1735111099810,0.28373221,704.89,703.75,1.05969484]
[1735111100007,0.26106268,704.88,703.75,1.05969484]
[1735111100606,0.28374026,704.87,703.78,1.05969484]
[1735111100812,0.26106268,704.86,703.78,1.05969484]
[1735111101010,0.28374831,704.85,703.78,1.05969484]
[1735111101210,0.26106268,704.84,703.78,1.05969484]
[1735111101410,0.28375636,704.83,703.78,1.05969484]
[1735111101605,0.26106268,704.82,703.78,1.05969484]
[1735111101806,0.28376441,704.81,703.78,1.05969484]
[1735111102010,0.26106287,704.8,703.78,1.05969484]
[1735111102510,0.26106287,704.8,703.81,1.05969484]
[1735111103110,0.28376441,704.81,703.81,1.05969484]
[1735111104105,0.28376441,704.81,703.8,1.05969484]
[1735111105312,0.28376441,704.81,703.76,1.05969484]
[1735111106116,0.28376441,704.81,703.75,1.05969484]
[1735111107214,0.28376441,704.81,703.76,1.05969484]
[1735111108416,0.28376441,704.81,703.77,1.05969484]
[1735111110115,0.28376441,704.81,703.84,1.05969484]
[1735111111422,0.28376441,704.81,703.9,1.05969484]
[1735111112518,0.28376441,704.81,703.88,1.05969484]
[1735111113527,0.27358426,704.81,703.88,1.05969484]
[1735111114027,0.27358426,704.81,703.87,1.05969484]
[1735111115521,0.27358426,704.81,703.8,1.05969484]
[1735111116617,0.27358426,704.81,703.79,1.05969484]
[1735111117820,0.27358426,704.81,703.78,1.05969484]
[1735111120426,0.27358426,704.81,703.04,2.16354364]
[1735111120427,0.27358426,704.81,703.76,1.05969484]
[1735111121125,0.27358426,704.81,703.75,1.05969484]
[1735111121926,0.27358426,704.81,703.7,1.05969484]
[1735111122728,0.27358426,704.81,703.75,1.05969484]
[1735111123628,0.27358426,704.81,703.74,1.05969484]
[1735111124529,0.27358426,704.81,702.72,2.16354364]
[1735111124530,0.27358426,704.81,703.7,1.05969484]
[1735111125629,0.27358426,704.81,703.69,1.05969484]
[1735111128630,0.27358426,704.81,702.72,2.16354364]
[1735111128631,0.27358426,704.81,703.65,1.05969484]
[1735111130024,0.27358426,704.81,703.78,1.05969484]
[1735111132032,0.27358426,704.81,703.77,1.05969484]
[1735111133031,0.27358426,704.81,703.78,1.05969484]
[1735111134333,0.27358426,704.81,703.71,1.05969484]
[1735111135335,0.27358426,704.81,703.21,0.7774506]
[1735111135336,0.27358426,704.81,703.61,1.05969484]
[1735111136234,0.27358426,704.81,703.62,1.05969484]
[1735111137132,0.27358426,704.81,703.61,1.05969484]
[1735111138334,0.27358426,704.81,703.63,1.05969484]
[1735111139635,0.27358426,704.81,703.2,0.2844141]
[1735111139636,0.27358426,704.81,703.6,1.05969484]
[1735111140531,0.27358426,704.81,703.58,1.05969484]
[1735111141437,0.27358426,704.81,703.59,1.05969484]
[1735111142339,0.27358426,704.81,703.6,1.05969484]
[1735111144238,0.27358426,704.81,703.64,1.05969484]
[1735111145235,0.27358426,704.81,703.79,1.05969484]
[1735111146543,0.27358426,704.81,703.21,0.77684195]
[1735111146544,0.27358426,704.81,703.73,1.05969484]
[1735111147337,0.27358426,704.81,703.72,1.05969484]
[1735111147543,0.26107458,704.8,703.72,1.05969484]
[1735111147738,0.27358426,704.81,703.72,1.05969484]
[1735111148745,0.27358426,704.81,703.69,1.05969484]
[1735111149645,0.27358426,704.81,703.78,1.05969484]
[1735111150845,0.27358426,704.81,703.21,0.77684195]
[1735111150846,0.27358426,704.81,703.77,1.05969484]
[1735111151941,0.27358426,704.81,703.81,1.05969484]
[1735111152744,0.27358426,704.81,703.67,1.05969484]
[1735111153848,0.27358426,704.81,703.7,1.05969484]
[1735111155043,0.27358426,704.81,703.71,1.05969484]
[1735111155851,0.27358426,704.81,703.69,1.05969484]
[1735111157752,0.27358426,704.81,703.51,1.05969484]
[1735111159456,0.27358426,704.81,703.45,1.05969484]
[1735111160253,0.27358426,704.81,703.49,1.05969484]
[1735111162348,0.27358426,704.81,703.57,1.05969484]
[1735111163151,0.27358426,704.81,703.59,1.05969484]
[1735111164247,0.27358426,704.81,703.67,1.05969484]
[1735111165249,0.27358426,704.81,703.65,1.05969484]
[1735111166058,0.27358426,704.81,703.69,1.05969484]
[1735111166958,0.27358426,704.81,703.7,1.05969484]
[1735111167553,0.27358426,704.81,703.68,1.05969484]
[1735111169354,0.27358426,704.81,703.64,1.05969484]
[1735111170559,0.27358426,704.81,703.63,1.05969484]
[1735111171357,0.27358426,704.81,703.68,1.05969484]
[1735111172862,0.27358426,704.81,703.69,1.05969484]
[1735111174862,0.27358426,704.81,703.66,1.05969484]
[1735111175862,0.27358426,704.81,703.21,0.77695295]
[1735111175863,0.27358426,704.81,703.68,1.05969484]
[1735111178665,0.27358426,704.81,703.67,1.05969484]
[1735111179867,0.27358426,704.81,703.69,1.05969484]
[1735111180458,0.27358426,704.81,703.68,1.05969484]
[1735111181363,0.27358426,704.81,703.69,1.05969484]
[1735111182562,0.27358426,704.81,703.68,1.05969484]
[1735111182762,0.26107406,704.8,703.68,1.05969484]
[1735111184866,0.26107406,704.8,703.69,1.05969484]
[1735111186070,0.26107406,704.8,703.68,1.05969484]
[1735111187270,0.26107406,704.8,703.66,1.05969484]
[1735111188771,0.27358426,704.81,703.66,1.05969484]
[1735111188967,0.26109368,704.8,703.66,1.05969484]
[1735111189373,0.26109368,704.8,703.67,1.05969484]
[1735111189572,0.27358426,704.81,703.67,1.05969484]
[1735111189773,0.26110305,704.8,703.67,1.05969484]
[1735111190069,0.26110305,704.8,703.66,1.05969484]
[1735111191370,0.26110305,704.8,703.68,1.05969484]
[1735111191572,0.27358426,704.81,703.68,1.05969484]
[1735111191770,0.26110014,704.8,703.68,1.05969484]
[1735111192777,0.26110014,704.8,703.71,1.05969484]
[1735111193777,0.26110014,704.8,703.73,1.05969484]
[1735111194475,0.26110322,704.79,703.73,1.05969484]
[1735111194672,0.26110322,704.78,703.73,1.05969484]
[1735111194877,0.26110322,704.78,703.21,0.77695295]
[1735111194878,0.26110322,704.77,703.68,1.05969484]
[1735111195177,0.26110322,704.76,703.68,1.05969484]
[1735111195376,0.26110322,704.75,703.68,1.05969484]
[1735111195572,0.26110322,704.74,703.68,1.05969484]
[1735111195776,0.26110322,704.73,703.71,1.05969484]
[1735111195976,0.26110322,704.72,703.71,1.05969484]
[1735111196176,0.26110322,704.71,703.71,1.05969484]
[1735111196377,0.27358426,704.81,703.71,1.05969484]
[1735111196676,0.26110061,704.8,703.7,1.05969484]
[1735111197578,0.26110061,704.8,703.48,1.05969484]
[1735111197579,0.26110061,704.8,703.71,1.05969484]
[1735111198578,0.26110061,704.8,703.7,1.05969484]
[1735111199679,0.26110061,704.8,703.67,1.05969484]
[1735111199882,0.27358426,704.81,703.67,1.05969484]
[1735111200082,0.26111257,704.8,703.67,1.05969484]
[1735111201081,0.26111257,704.8,703.69,1.05969484]
[1735111201778,0.27358426,704.81,703.73,1.05969484]